Cogmind - Beta 16 @@@ ROGUE MODE // 2025.12.07 @ 15:10:29 Player: cingulata Result: Destroyed by H-66 Slayer with Gauss Rifle Performance ------------- Evolutions (4) 2000 Regions Visited (7) 1400 Robots Destroyed (77) 385 Value Destroyed (2630) 2630 Prototype IDs (11) 220 Alien Tech Used (0) 0 Bonus (48) 48 TOTAL SCORE: 6683 Bonus ------- High Alert Combat Kills 73 Follower Combat Kills 111 Registered with UFD 300 Met Optimus in HQ 500 Friendly Fire -936 Cogmind --------- Core Integrity 0/850 Matter 300/300 Energy 150/150 System Corruption 38% Temperature Cool (0) Movement Treading (155) Location -6/Extension Parts ------- > --- POWER (1) -------- Light Angular Momentum Engine > --- PROPULSION (5) --- Light Treads Advanced Treads Medium Treads > --- UTILITY (7) ------ Medium Storage Unit Enhanced Optical Array Backup Plating III Improved Light Armor Plating Improved Hardlight Generator Hacking Suite > --- WEAPON (2) ------- Mini Assault Cannon > --- INVENTORY (10) --- Combat Airjet Gravmag Array Deep Structural Scanner Advanced Sensor Array Backup Plating III Gatling Laser Magnetic Acceleration Cannon Long-range Missile Launcher Long-range Missile Launcher Peak State ------------ > --- POWER ------------ Angular Momentum Engine > --- PROPULSION ------- Light Treads Armored Leg Armored Leg Wheel Compact Wheel > --- UTILITY ---------- Advanced Heat Sink Medium Storage Unit Enhanced Optical Array IFF Parser Advanced Terrain Scanner Surveybot 17 Chip Hacking Suite > --- WEAPON ----------- Antimatter Cannon Power Sword > --- INVENTORY -------- Light Ion Engine Advanced Treads Wheel Improved Heat Sink Deep Structural Scanner Improved Terrain Scanner Improved Reaction Control System Long-range Missile Launcher Long-range Missile Launcher CPS Tube [Rating: 63] Favorites ----------- Power Light Nuclear Core Engine Subdweller Power Source Power Core Light Nuclear Core Reactor Cold Fusion Reactor Propulsion Light Treads Treads Light Treads Leg Armored Leg Wheel Wheel Hover Unit Combat Airjet Flight Unit Biomechanical Wings Utility Large Storage Unit Device Deep Structural Scanner Storage Large Storage Unit Processor Enhanced Optical Array Hackware Hacking Suite Protection Improved Light Armor Plating Weapon Particle Gun Energy Gun Particle Gun Ballistic Gun Subdweller Machine Gun Ballistic Cannon Magnetic Acceleration Cannon Launcher Long-range Missile Launcher Special Weapon Remote Datajack Impact Weapon Hammer Slashing Weapon Power Sword Piercing Weapon Spear Build | -11 -10 -10 -9 -6 -6 -6 -6 ------- Run | Yrd Mat Sub Scr Fac Was Fac Ext Slots Evolved 8 | . . . . 8 . . . Power . | . . . . . . . . Propulsion 3 | . . . . 3 . . . Utility 5 | . . . . 5 . . . Weapon . | . . . . . . . . Parts Attached 89 | 1 11 11 7 38 1 . 20 Power 11 | . 1 3 1 3 . . 3 Engine 9 | . 1 3 . 2 . . 3 Core 1 | . . . 1 . . . . Reactor 1 | . . . . 1 . . . Propulsion 25 | . 3 2 2 10 . . 8 Treads 10 | . 2 1 . 1 . . 6 Leg 2 | . . . . 2 . . . Wheel 10 | . 1 1 2 6 . . . Hover 2 | . . . . . . . 2 Flight 1 | . . . . 1 . . . Utility 34 | 1 4 2 3 18 . . 6 Device 19 | 1 1 2 2 12 . . 1 Storage 3 | . 1 . 1 1 . . . Processor 2 | . . . . 2 . . . Hackware 3 | . . . . 2 . . 1 Protection 7 | . 2 . . 1 . . 4 Artifact . | . . . . . . . . Weapon 19 | . 3 4 1 7 1 . 3 Energy Gun 3 | . . 2 . 1 . . . Energy Cannon . | . . . . . . . . Ballistic Gun 3 | . 1 2 . . . . . Ballistic Cannon 3 | . . . . 2 . . 1 Launcher 3 | . 1 . . 2 . . . Special Weapon 3 | . . . 1 . 1 . 1 Impact Weapon 2 | . 1 . . 1 . . . Slashing Weapon 1 | . . . . 1 . . . Piercing Weapon 1 | . . . . . . . 1 Special Melee Weapon . | . . . . . . . . Unidentified Prototypes 5 | . . . 1 3 . . 1 Parts Lost 29 | . 1 4 . 13 1 . 10 Power 3 | . . 1 . 1 . . 1 Propulsion 12 | . 1 . . 6 . . 5 Utility 11 | . . 2 . 5 1 . 3 Weapon 3 | . . 1 . 1 . . 1 Highest Loss Streak 4 | . 1 3 . 4 1 . 3 To Critical Strikes 1 | . . . . . . . 1 Average Backups 11 | 6 12 13 13 9 10 9 8 Power . | 1 1 1 . . 1 . . Propulsion 1 | 4 2 3 1 . 1 1 2 Utility 4 | . 4 5 6 3 3 2 2 Weapon 4 | 1 3 4 4 3 3 3 3 Tool/Special . | . . . . . . . . Unused Backups 26 | . 4 2 3 8 . 2 7 Power 2 | . . . . 1 . 1 . Propulsion 4 | . 2 1 . . . . 1 Utility 8 | . 1 . 1 4 . 1 1 Weapon 10 | . 1 1 1 2 . . 5 Tool/Special 2 | . . . 1 1 . . . Average Slot Usage (%) 90 | . 99 98 94 75 91 80 88 Engine 5 | . 13 13 4 3 3 . 3 Core 4 | . . . 8 1 . . . Treads 10 | . 12 16 9 5 6 6 18 Leg 2 | . 2 . . 4 9 6 2 Wheel 13 | . 12 11 17 9 13 13 6 Device 14 | . 12 10 13 17 13 13 13 Storage 10 | . 14 14 13 4 6 6 6 Processor 2 | . . . . 6 6 6 6 Hackware 3 | . . . . 5 13 13 9 Protection 1 | . 1 1 . . 3 . 3 Energy Gun 7 | . . 12 13 3 . . . Ballistic Gun 5 | . 27 15 6 . . . . Ballistic Cannon 1 | . . . . 1 6 6 5 Impact Weapon 3 | . . . 6 . . . . Slashing Weapon 1 | . . . . 3 . . 4 Peak Build Rating 63 | 7 10 15 25 63 53 43 60 Average Rating 26 | 6 8 12 14 41 47 42 50 On Entrance 23 | 6 7 8 14 16 53 43 43 Avg Prop Armor Cover (%) 13 | . 11 13 12 15 17 15 16 Naked Turns 131 | . . . 131 . . . . Heaviest Build 47 | 13 29 35 35 47 34 23 45 Greatest Support 118 | 20 20 40 40 68 26 26 118 Greatest Overweight (x) 15 | . 1 2 6 15 1 1 1 Average Overweight (x) 1 | . . 1 1 . . . . Largest Inventory Capacity 15 | 8 15 15 15 15 10 10 10 Average Capacity 12 | 8 14 15 14 10 10 10 10 Most Carried 15 | 7 15 15 15 15 10 10 10 Average Carried 12 | 6 12 14 14 9 10 9 9 Final Capacity 15 | 8 15 15 15 10 10 10 10 Final Carried 15 | 7 14 14 15 10 10 10 10 Class Distribution -------------------- 50% | Mutant 45% | Scavenger-Mutant Dominant Class ---------------- Mutant | -10/Materials Scavenger-Mutant | -10/Subcaves Mutant | -9/Scraptown Mutant | -6/Factory Scavenger-Mutant | -6/Waste Scavenger-Mutant | -6/Factory Scavenger-Mutant | -6/Extension Resources | -11 -10 -10 -9 -6 -6 -6 -6 ----------- Run | Yrd Mat Sub Scr Fac Was Fac Ext Matter Collected 2598 | 246 220 252 216 813 . . 851 Remotely . | . . . . . . . . Salvage Created 3251 | 118 356 155 . 1768 . . 854 Parts 138 | 3 18 9 . 75 . . 33 Haulers Intercepted 1 | . . . . 1 . . . Recyclers Shooed 4 | 1 . . . 3 . . . Parts Field Recycled . | . . . . . . . . Retrieved Matter . | . . . . . . . . Parts Self-Destructed 2 | . . 2 . . . . . Prevented . | . . . . . . . . Parts Restored . | . . . . . . . . Kills | -11 -10 -10 -9 -6 -6 -6 -6 ------- Run | Yrd Mat Sub Scr Fac Was Fac Ext Combat Hostiles Destroyed 52 | . 7 4 . 28 . . 13 Melee 17 | . . . . 8 . . 9 Guns 14 | . 7 4 . 3 . . . Cannons 6 | . . . . 4 . . 2 AOE 15 | . . . . 13 . . 2 Classes Destroyed 14 | 2 2 1 . 9 . . . Worker 7 | . . . . 7 . . . Builder 6 | . . . . 2 . . 4 Tunneler 1 | 1 . . . . . . . Hauler 1 | . . . . 1 . . . Recycler 5 | 1 . . . 4 . . . Watcher 2 | . 2 . . . . . . Swarmer 7 | . . . . 7 . . . Grunt 27 | . 7 . . 11 . . 9 Brawler 2 | . . . . 2 . . . Duelist 2 | . . . . 2 . . . Sentry 4 | . . . . 2 . . 2 Hunter 3 | . . . . 2 . . 1 Programmer 3 | . . . . 2 . . 1 Subdweller 4 | . . 4 . . . . . Thug 2 | . . . . . . . 2 Savage 1 | . . . . . . . 1 Best Kill Streak 8 | 2 2 2 . 8 . . 6 Combat Bots Only 7 | . 2 2 . 7 . . 6 Max Kills in Single Turn 3 | 1 1 1 . 3 . . 2 Gunslinging . | . . . . . . . . Exploded 3 | . . . . 3 . . 2 Melee 1 | . . . . 1 . . 1 Uniques/NPCs Destroyed . | . . . . . . . . Combat | -11 -10 -10 -9 -6 -6 -6 -6 -------- Run | Yrd Mat Sub Scr Fac Was Fac Ext Hostile Shots Fired 471 | . 36 37 . 218 1 . 179 Missed 144 | . 8 12 . 72 . . 52 Hits 327 | . 28 25 . 146 1 . 127 Melee 1 | . . . . . 1 . . Projectile 326 | . 28 25 . 146 . . 127 Critical Strikes 10 | . . 1 . 2 1 . 6 Damage Taken 5147 | . 362 558 . 2383 52 . 1792 Core 1104 | . 69 171 . 573 52 . 239 Absorbed by Shields 186 | . . . . . . . 186 Redirected to Shielding 53 | . 24 29 . . . . . Regen/Repaired (Parts) 19 | . . . . 19 . . . Core Remaining (%) 52 | 100 . . 4 . . . . Volleys Fired 160 | 6 31 21 . 60 7 . 35 Largest 2 | 2 2 2 . 2 1 . 1 Hottest 145 | 40 40 95 . 145 44 . 44 Shots Fired 236 | 12 60 39 . 81 8 . 36 Gun 152 | 12 60 38 . 42 . . . Cannon 59 | . . . . 19 7 . 33 Launcher 23 | . . 1 . 20 . . 2 Special 2 | . . . . . 1 . 1 Kinetic 159 | 12 60 28 . 19 7 . 33 Thermal 52 | . . 10 . 42 . . . Explosive 17 | . . 1 . 14 . . 2 Electromagnetic 6 | . . . . 6 . . . Robot Hit Streak 20 | 2 10 20 . 14 . . 5 Robot Miss Streak 3 | 1 1 1 . 2 . . 3 Penetration Max . | . . . . . . . . Secondary Targets . | . . . . . . . . Shots Hit Robots 206 | 8 36 34 . 82 . . 46 Core Hits 134 | 3 18 9 . 79 . . 25 Critical Kills . | . . . . . . . . Critical Parts Destroyed 2 | . 1 . . 1 . . . Critical Strikes 8 | . 1 2 . 2 . . 3 Burn 1 | . . 1 . . . . . Destroy 2 | . 1 1 . . . . . Blast 1 | . . . . 1 . . . Smash 1 | . . . . 1 . . . Sever 3 | . . . . . . . 3 Melee Attacks 107 | . 3 . . 55 . . 49 Impact 9 | . 3 . . 6 . . . Slashing 98 | . . . . 49 . . 49 Piercing . | . . . . . . . . Sneak Attacks 20 | . . . . 8 . . 12 Combat Hostiles 1 | . . . . 1 . . . Follow-up Attacks . | . . . . . . . . Damage Inflicted 8199 | 91 500 577 . 4436 . . 2595 Guns 1800 | 91 500 521 . 688 . . . Cannons 612 | . . . . 343 . . 269 Explosions 2430 | . . 56 . 1872 . . 502 Melee 3322 | . . . . 1533 . . 1789 Ramming 35 | . . . . . . . 35 Kinetic 1611 | 91 500 408 . 343 . . 269 Thermal 1015 | . . 113 . 861 . . 41 Explosive 1881 | . . 56 . 1364 . . 461 Electromagnetic 335 | . . . . 335 . . . Impact 155 | . . . . 155 . . . Slashing 3167 | . . . . 1378 . . 1789 Piercing . | . . . . . . . . Highest Corruption 38 | . . . . 5 34 34 38 Average Corruption 21 | . . . . 2 21 34 35 Corruption Purged . | . . . . . . . . Corruption Blocked . | . . . . . . . . Effects 112 | . . . . 19 16 9 68 Message Errors 26 | . . . . 6 3 1 16 Matter Fused 25 | . . . . 7 2 1 15 Heat Flow Errors 15 | . . . . 5 1 2 7 Energy Discharges 14 | . . . . 1 2 . 11 Parts Rejected 2 | . . . . . . . 2 Parts Fused 1 | . . . . . . 1 . Data Loss (minor) 15 | . . . . . 2 4 9 Data Loss (major) 3 | . . . . . . . 3 Misfires 2 | . . . . . 1 . 1 Alerts 1 | . . . . . . . 1 Misdirections 8 | . . . . . 5 . 3 Overload Shots . | . . . . . . . . Overflow Damage 686 | . . . . 353 . . 333 Projectiles 22 | . . . . 22 . . . Explosions 103 | . . . . 83 . . 20 Melee 561 | . . . . 248 . . 313 Knockbacks 7 | . . . . 4 . . 3 Impact 2 | . . . . 2 . . . Kinetic 5 | . . . . 2 . . 3 Secondary . | . . . . . . . . Self-Inflicted Damage 179 | . . 16 . 163 . . . Shots 5 | . . 1 . 4 . . . Rammed 12 | . . . . . . 1 11 Targets Rammed 13 | . . . . . . 1 12 Kicked . | . . . . . . . . Crushed 1 | . . . . . . . 1 Highest Temperature 246 | . 2 . . 235 199 201 246 Average Temperature 73 | . 2 . . 53 115 112 104 Received Heat Transfer 1403 | . 207 141 . 501 . . 554 Siege Activations . | . . . . . . . . Martial Activations . | . . . . . . . . Shielding Activations . | . . . . . . . . Robots Disrupted . | . . . . . . . . Combat Hostiles . | . . . . . . . . Robots Corrupted 1 | . . . . 1 . . . Combat Hostiles . | . . . . . . . . Parts Fried 2 | . . . . 2 . . . Impact Corruptions 4 | . . . . 3 . . 1 Robots Melted 1 | . . . . 1 . . . Combat Hostiles . | . . . . . . . . Parts Melted 4 | . . 3 . 1 . . . Heat Transferred 2085 | . . 333 . 1752 . . . Parts Sabotaged . | . . . . . . . . Parts Stolen . | . . . . . . . . Parts Stripped . | . . . . . . . . Power Chain Reactions 3 | . . . . 3 . . . Alert | -11 -10 -10 -9 -6 -6 -6 -6 ------- Run | Yrd Mat Sub Scr Fac Was Fac Ext Maximum Alert Level 2 | . . . . 2 1 . 1 Low Security (%) 84 | 100 100 . . 80 61 100 82 Level 1 11 | . . . . 8 38 . 17 Level 2 3 | . . . . 11 . . . Level 3 . | . . . . . . . . Level 4 . | . . . . . . . . Level 5 . | . . . . . . . . High Security . | . . . . . . . . Max Security . | . . . . . . . . Peak Influence 684 | 10 63 . . 684 239 73 274 Initial 238 | . . . . . 238 73 . Average 88 | 2 20 . . 145 176 20 61 Influence Increases 2259 | 10 249 . . 1431 7 . 562 Destroy 0b10 Robot/C 1020 | . 140 . . 560 . . 320 Destroy 0b10 Robot/NC 110 | 10 10 . . 70 . . 20 Destroy Leader 216 | . 34 . . 132 . . 50 Allied During Kill 14 | . . . . . . . 14 Successful Hack 98 | . 32 . . 18 . . 48 Disable Machine 135 | . . . . 120 . . 15 Destroy Structure 216 | . 3 . . 171 7 . 35 Partial Spotted 30 | . . . . 30 . . . Lose Combat Pursuer 420 | . 30 . . 330 . . 60 Influence Decreases 2073 | 10 202 47 . 750 583 105 376 Entered New Map 498 | . . 23 . . 443 32 . Time Decay 1004 | 10 192 10 . 370 130 73 219 Search Patrol Dispatched 100 | . . . . 100 . . . Lost Part 235 | . 10 14 . 130 10 . 71 Lost Ally 80 | . . . . . . . 80 Purge Threat 156 | . . . . 150 . . 6 Squads Dispatched 18 | . 1 . . 13 . . 4 Investigation 7 | . 1 . . 5 . . 1 Extermination 2 | . . . . 2 . . . Reinforcement 9 | . . . . 6 . . 3 Assault . | . . . . . . . . Garrison . | . . . . . . . . Intercept . | . . . . . . . . Searches Triggered 1 | . . . . 1 . . . Construction Impeded 3 | . . . . 1 . . 2 Haulers Reinforced 1 | . . . . 1 . . . Active Scanning Responses . | . . . . . . . . Cargo Convoy Interrupts . | . . . . . . . . Stealth | -11 -10 -10 -9 -6 -6 -6 -6 --------- Run | Yrd Mat Sub Scr Fac Was Fac Ext Distress Signals 9 | . 2 . . 5 . . 2 Communications Jammed . | . . . . . . . . Distress Signals . | . . . . . . . . Times Spotted 96 | . 9 4 . 53 6 . 24 Peak Tracking Total 9 | . 3 2 . 9 5 . 8 Tactical Retreats 13 | . 1 . . 7 3 . 2 Traps | -11 -10 -10 -9 -6 -6 -6 -6 ------- Run | Yrd Mat Sub Scr Fac Was Fac Ext Traps Triggered 6 | . 2 . . 4 . . . Indirectly . | . . . . . . . . Trap Hack Attempts . | . . . . . . . . Triggered . | . . . . . . . . Disarmed 5 | . . . . . . . 5 Reprogrammed . | . . . . . . . . Reused . | . . . . . . . . Traps Extracted . | . . . . . . . . Installed . | . . . . . . . . Triggered . | . . . . . . . . Machines | -11 -10 -10 -9 -6 -6 -6 -6 ---------- Run | Yrd Mat Sub Scr Fac Was Fac Ext Machines Disabled 9 | . . . . 8 . . 1 Max in Single Turn 4 | . . . . 4 . . 1 Garrison Access 2 | . . . . 2 . . . Energy Cycler 1 | . . . . . . . 1 Machines Repaired . | . . . . . . . . Machines Dismantled . | . . . . . . . . Machines Sabotaged . | . . . . . . . . Overloaded Fab Kills . | . . . . . . . . Hacking | -11 -10 -10 -9 -6 -6 -6 -6 --------- Run | Yrd Mat Sub Scr Fac Was Fac Ext Machines Accessed 35 | . 3 . 8 15 . . 9 Terminals 19 | . 3 . . 7 . . 9 Fabricators 1 | . . . . 1 . . . Repair Stations 1 | . . . . 1 . . . Recycling Units 4 | . . . . 4 . . . Scanalyzers . | . . . . . . . . Garrison Access 2 | . . . . 2 . . . Total Hacks 130 | . 13 . 58 28 . . 31 Successful 88 | . 8 . 58 10 . . 12 Failed 42 | . 5 . . 18 . . 19 Catastrophic 8 | . . . . 4 . . 4 Database Lockouts . | . . . . . . . . Manual 39 | . 13 . . 10 . . 16 Terminals 59 | . 13 . . 15 . . 31 Fabricators 2 | . . . . 2 . . . Repair Stations 2 | . . . . 2 . . . Recycling Units 6 | . . . . 6 . . . Scanalyzers . | . . . . . . . . Garrison Access 3 | . . . . 3 . . . Terminal Hacks 70 | . 2 . 58 3 . . 7 Record 48 | . . . 48 . . . . Part Schematic 2 | . 2 . . . . . . Robot Analysis 9 | . . . 9 . . . . Open Door 2 | . . . . . . . 2 Unreport Threat 2 | . . . . 1 . . 1 Locate Traps 1 | . . . . . . . 1 Disarm Traps 1 | . . . . . . . 1 Registered Components 1 | . . . . 1 . . . Zone Layout 3 | . . . . 1 . . 2 Proto ID Catalog 1 | . . . 1 . . . . Fabricator Hacks . | . . . . . . . . Repair Station Hacks 2 | . . . . 2 . . . Scan Component 1 | . . . . 1 . . . Repair 1 | . . . . 1 . . . Recycling Unit Hacks . | . . . . . . . . Scanalyzer . | . . . . . . . . Garrison Access Hacks 2 | . . . . 2 . . . Seal Access 2 | . . . . 2 . . . Unauthorized Hacks 14 | . 6 . . 3 . . 5 Terminals 11 | . 6 . . . . . 5 Track 1 | . . . . . . . 1 Botnet 2 | . . . . . . . 2 Disrupt 2 | . 1 . . . . . 1 Operators 3 | . 2 . . . . . 1 Skim 3 | . 3 . . . . . . Fabricators . | . . . . . . . . Repair Stations . | . . . . . . . . Recycling Units 3 | . . . . 3 . . . Fedlink 3 | . . . . 3 . . . Scanalyzers . | . . . . . . . . Garrison Access . | . . . . . . . . Data Cores Recovered . | . . . . . . . . Used . | . . . . . . . . Hacking Detections 22 | . 3 . . 12 . . 7 Full Trace Events 3 | . . . . 2 . . 1 Feedback Events . | . . . . . . . . Feedback Blocked . | . . . . . . . . Robot Schematics Acquired . | . . . . . . . . Robots Built . | . . . . . . . . Authchips . | . . . . . . . . Time . | . . . . . . . . Total Robot Build Rating . | . . . . . . . . Part Schematics Acquired 2 | . 2 . . . . . . Parts Built . | . . . . . . . . Authchips . | . . . . . . . . Time . | . . . . . . . . Total Part Build Rating . | . . . . . . . . Part Studies Acquired . | . . . . . . . . Parts Repaired 1 | . . . . 1 . . . Time 80 | . . . . 80 . . . Parts Recycled . | . . . . . . . . Recycled Matter . | . . . . . . . . Retrieved Matter . | . . . . . . . . Retrieved Components . | . . . . . . . . Parts Scanalyzed . | . . . . . . . . Part Schematics Acquired . | . . . . . . . . Parts Damaged . | . . . . . . . . Bothacking | -11 -10 -10 -9 -6 -6 -6 -6 ------------ Run | Yrd Mat Sub Scr Fac Was Fac Ext Used RIF Installer . | . . . . . . . . Robots Hacked . | . . . . . . . . Non-combat . | . . . . . . . . Combat . | . . . . . . . . Robot Hacks Applied . | . . . . . . . . Relay Couplers Released . | . . . . . . . . Fabnet Peak Effective % . | . . . . . . . . Robots Rewired 3 | . . . . . . . 3 Allies Hacked . | . . . . . . . . Hacks Repelled . | . . . . . . . . Allies | -11 -10 -10 -9 -6 -6 -6 -6 -------- Run | Yrd Mat Sub Scr Fac Was Fac Ext Total Allies 7 | . . . . . . . 7 Largest Group 2 | . . . . . . . 2 Highest-Rated Group 159 | . . . . . . . 159 Highest-Rated Ally 159 | . . . . . . . 159 Total Orders . | . . . . . . . . Ally Attacks 21 | . . . . . . . 21 Total Damage 443 | . . . . . . . 443 Kills 3 | . . . . . . . 3 Allies Corrupted . | . . . . . . . . Allies Melted . | . . . . . . . . Intel | -11 -10 -10 -9 -6 -6 -6 -6 ------- Run | Yrd Mat Sub Scr Fac Was Fac Ext Active Infowar (turns) 5335 | 11 430 318 1236 1397 263 294 1386 Optics 3506 | . . 295 95 1173 263 294 1386 Sensors 842 | . . 7 . 835 . . . IFF 2031 | . . . . 262 263 294 1212 Terrain 194 | . . . . 194 . . . Structural 1632 | . . . 1141 473 . . 18 Seismic 457 | 11 430 16 . . . . . Cloaking 191 | . . . . 191 . . . Robot Analysis Total 9 | . . . 9 . . . . Derelict Logs Recovered 3 | . . . 3 . . . . Drone Launches . | . . . . . . . . Drone Recoveries . | . . . . . . . . Exploration | -11 -10 -10 -9 -6 -6 -6 -6 ------------- Run | Yrd Mat Sub Scr Fac Was Fac Ext Turns Passed 7947 | 40 642 449 3476 1397 263 294 1386 Spaces Moved 5759 | 17 383 261 2990 1129 204 136 639 Core 302 | . . . 297 5 . . . Treads 815 | . 18 38 148 136 . 111 364 Legs 35 | 17 18 . . . . . . Wheels 4111 | . 347 223 2545 492 204 25 275 Hover . | . . . . . . . . Flight 496 | . . . . 496 . . . Fastest Speed 40 | 120 100 115 50 40 90 90 90 Average Speed 114 | 120 120 133 113 85 96 212 140 Slowest Speed 800 | 120 240 160 350 800 105 240 240 Overloaded Moves . | . . . . . . . . Propulsion Burnouts . | . . . . . . . . Robots Hopped 15 | . . . . 15 . . . Potential Cave-ins 9 | . . . . . . . 9 Cave-ins Triggered 1 | . . . . . . . 1 Exploration Rate (%) 45 | 2 57 23 94 35 84 2 67 Regions Visited 7 Branch Regions 3 Pre-discovered Areas 6 | . . 1 4 1 . . . Known Exits Taken 1 | . . . . . . 1 . Unknown Exits Taken 4 | 1 1 1 1 . . . . Scrap Searched 4 | . . . 4 . . . . Spaces Dug 69 | . 2 . . 46 6 . 15 Terrain Destroyed 278 | . 2 8 . 206 7 . 55 Melee 28 | . 2 . . 20 . . 6 Projectile 33 | . . . . 8 7 . 18 AOE 217 | . . 8 . 178 . . 31 Terrain Rammed . | . . . . . . . . Walls Destroyed . | . . . . . . . . Machines Disabled . | . . . . . . . . Actions | -11 -10 -10 -9 -6 -6 -6 -6 --------- Run | Yrd Mat Sub Scr Fac Was Fac Ext Total 6685 | 24 493 322 3071 1372 262 143 998 Wait 287 | . 46 9 . 31 50 . 151 Move 5725 | 16 382 260 2989 1101 203 135 639 Hop 13 | . . . . 13 . . . Pick Up 76 | 1 11 8 30 17 . 3 6 Fast Attach 58 | 1 2 . 12 26 . . 17 Attach 24 | . 1 4 3 15 . . 1 Detach 19 | . . . . 15 . . 4 Swap 65 | . 13 14 6 20 2 . 10 Drop 74 | . 4 6 31 19 . 4 10 Fire 160 | 6 31 21 . 60 7 . 35 Melee 107 | . 3 . . 55 . . 49 Ram . | . . . . . . . . Kick . | . . . . . . . . Crush 13 | . . . . . . 1 12 Escape Stasis . | . . . . . . . . Rewire 64 | . . . . . . . 64 Trap . | . . . . . . . . Miscellaneous . | . . . . . . . . Route ------- -11/Scrapyard -10/Materials (discovered 3 exits: [*Mat x2] / [*Sub]) -10/Subcaves (discovered 2 exits: [*Mat] / *Scr) -9/Scraptown (discovered 2 exits: *Fac x2) -6/Factory (discovered 7 exits: Fac x4 / *Low x2 / Ext) -6/Waste -6/Factory (discovered 2 exits: Low / *Ext) -6/Extension (discovered 2 exits: *Fac / [*Cet]) History --------- Turn | Location | Event 20 | -11/Scrapyard | Discovered new exit (range 1) 41 | -11/Scrapyard | Entered Materials 250 | -10/Materials | Discovered new exit (range 12) 314 | -10/Materials | Build established: Mutant 366 | -10/Materials | Discovered new exit (range 16) 582 | -10/Materials | Discovered new exit (range 7) 683 | -10/Materials | Entered Subcaves 684 | -10/Subcaves | Approached by a straggling Scientist 729 | -10/Subcaves | Core integrity fell below 50% 765 | -10/Subcaves | Lost 3 parts (1p1u1w) 953 | -10/Subcaves | Learned location of Zion (-7) 953 | -10/Subcaves | Met a Zionite searching for "candidates" 974 | -10/Subcaves | Build established: Scavenger-Mutant 1046 | -10/Subcaves | Core integrity fell below 20% 1109 | -10/Subcaves | Discovered new exit (range 11) 1113 | -10/Subcaves | Scientist uncovered a shortcut to Scraptown 1124 | -10/Subcaves | A swath of the cavern ceiling suddenly collapsed 1132 | -10/Subcaves | Entered Scraptown 1206 | -9/Scraptown | Heard Great Nut preacher, LISTEN AND RECITE! 1404 | -9/Scraptown | Visited Cyclists 1429 | -9/Scraptown | Visited Scrapoid Research Area 1446 | -9/Scraptown | Visited Symbiants 1470 | -9/Scraptown | Visited The Evicted 1546 | -9/Scraptown | Discovered new exit (range 5) 1813 | -9/Scraptown | Visited UFD Registry 1813 | -9/Scraptown | Registered with UFD as "Datagunner" 1841 | -9/Scraptown | Visited Comm Corps 2096 | -9/Scraptown | Scanned Subdweller tech in exchange for log data 2100 | -9/Scraptown | Learned Research trap positions 2102 | -9/Scraptown | Learned location of Warlord (-4) 2212 | -9/Scraptown | Visited Scrapoid Pod Storage 2236 | -9/Scraptown | Visited Science Guys 2270 | -9/Scraptown | Visited Observation Area 2498 | -9/Scraptown | Visited Analyses Database 2512 | -9/Scraptown | Build established: Mutant 2535 | -9/Scraptown | Visited Scrap Suit Storage 2569 | -9/Scraptown | Visited Junk Repository 2586 | -9/Scraptown | Visited Cartography Club 2647 | -9/Scraptown | Found Surveybot 17 Chip 2692 | -9/Scraptown | Learned location of Recycling (-9) 2692 | -9/Scraptown | Learned location of Proximity Caves (-3) 2692 | -9/Scraptown | Learned location of Armory (-4) 2692 | -9/Scraptown | Learned 24 Factory zone layouts 2692 | -9/Scraptown | Learned 8 Research zone layouts 2692 | -9/Scraptown | Learned 16 Upper Caves zone layouts 2692 | -9/Scraptown | Learned 24 Upper Caves zone layouts 2692 | -9/Scraptown | Learned 4 Armory zone layouts 2692 | -9/Scraptown | Learned Materials emergency access door positions 2692 | -9/Scraptown | Learned location of 1 exit from Upper Caves 2692 | -9/Scraptown | Learned location of 3 exits from Upper Caves 2692 | -9/Scraptown | Learned location of 1 exit from Proximity Caves 2738 | -9/Scraptown | Found Deep Structural Scanner 2835 | -9/Scraptown | Visited Abandonware Association 2852 | -9/Scraptown | Learned abandonware demo "ERRANTS.EXE" 2852 | -9/Scraptown | Learned abandonware demo "KABOOM.EXE" 2927 | -9/Scraptown | Visited Junk Cannon Lab 2934 | -9/Scraptown | Found Prototype Special Weapon 2934 | -9/Scraptown | Identified Junk Cannon 2970 | -9/Scraptown | Visited Curators Association 3372 | -9/Scraptown | Visited Fellowship of the Rings 3416 | -9/Scraptown | Entered Cyclist Reading Room 3471 | -9/Scraptown | Visited Junk Repository 4230 | -9/Scraptown | Guru changed UFD alias to "Flexitalker" 4533 | -9/Scraptown | Met Optimus 4533 | -9/Scraptown | Accepted into 0bPrime 4593 | -9/Scraptown | Discovered new exit (range 10) 4608 | -9/Scraptown | Entered Factory 4608 | -6/Factory | Evolved 8 slots: Propulsion x3, Utility x5 4609 | -6/Factory | Identified exit to Lower Caves 4610 | -6/Factory | Identified exit to Extension 4610 | -6/Factory | Identified exit to Factory 4874 | -6/Factory | Loaded intel: 8 recycling unit locations 5034 | -6/Factory | Lost 4 parts (3n1u) 5308 | -6/Factory | Search patrols dispatched 5514 | -6/Factory | Learned location of Protoforge (-2) 5519 | -6/Factory | Repaired Biomechanical Wings? 5847 | -6/Factory | Core integrity fell below 50% 5871 | -6/Factory | Destroyed 7 combat bots 6005 | -6/Factory | Sucked down chute 6005 | -6/Factory | Entered Waste 6020 | -6/Waste | EMP discharged 6020 | -6/Waste | System corruption reached 10% 6028 | -6/Waste | Spotted C-40 Crusher 6089 | -6/Waste | Build established: Scavenger-Mutant 6099 | -6/Waste | Spotted C-40 Crusher 6120 | -6/Waste | EMP discharged 6127 | -6/Waste | Spotted C-40 Crusher 6136 | -6/Waste | Spotted C-40 Crusher 6144 | -6/Waste | Crushed by Compactor (1 part destroyed, 2 dropped) 6148 | -6/Waste | Spotted C-40 Crusher 6220 | -6/Waste | EMP discharged 6220 | -6/Waste | System corruption reached 30% 6232 | -6/Waste | Spotted C-40 Crusher 6259 | -6/Waste | Discovered new exit (range 11) 6268 | -6/Waste | Entered Factory 6298 | -6/Factory | Discovered exit to Extension (range 15) 6562 | -6/Factory | Entered Extension 7291 | -6/Extension | Core integrity fell below 20% 7316 | -6/Extension | Rescued a captive Derelict 7317 | -6/Extension | Rescued a captive Derelict 7465 | -6/Extension | Crushed by falling debris 7517 | -6/Extension | Energy Cycler disabled 7552 | -6/Extension | Rescued A7 7561 | -6/Extension | Attached CPS modules to A7. 7941 | -6/Extension | Discovered exit to Factory (range 10) 7943 | -6/Extension | Discovered new exit (range 6) 7948 | -6/Extension | Destroyed by H-66 Slayer with Gauss Rifle Last Messages --------------- 07935_ Acquired Lgt. Treads. 07937_ Penetrated by Slug. 07937_ Critical hit (Destroy). 07937_ Lgt. Treads destroyed. 07938_ Acquired 5 matter. 07940_ Slammed into H-66 Slayer. 07940_ Destroyed Targeting Computer. 07940_ H-66 Slayer system corrupted by crushing effect. 07940_ Med. Treads destroyed. 07941_ Slammed into H-66 Slayer. 07941_ EXIT=FOUND: FACTORY 07943_ Slammed into H-66 Slayer. 07943_ EXIT=FOUND 07943_ Penetrated by Slug. 07944_ Slug penetrates Machine. 07945_ Crushed H-66 Slayer. 07945_ H-66 Slayer destroyed. 07947_ U-05 Engineer enters Transfer Station. 07948_ Penetrated by Slug. Map ----- +----------------------------------------------------+ | !#T###????????# # ##??? | | *+!=[#????????# % "##?? | | [#|#[#????????# # = #?? | | =#####????????# # "= = #?? | | !##???????????# #### %= #?? | | #????????????######??# = #?? | | #????????????????????# #?? | | ##????????????????????# #?? | | ??????????????????????###;####?? | | ???????????????????????# #???? | | ???????????????????????# #???? | | ???????????????????????# #???? | | ???????????????????????## ##???? | | ????????????????????????# #????? | | ????????????????????????#%#????? | | ????????????????????????# #????? | | ????????????????????????# #????? | | ????????????????????????# #????? | | ????????????????????????# #????? | | ????????????????????????#*#????? | | ????????????????????????#%#????? | | ????????????????????????#%#????? | | ????????????????????????#%#????? | | ????????????????????#####%####?? | | ????????????????????# ""%"" #?? | | ????????????????????# "@" #?? | | ??????????? h = # | | ??????? = < # | | ??????? ! = # | | ??????? ### | | ???????? A *?? | | ????????############# [ < ? | | ????????????????????# # | | ????????????????????###" "#### | | ??????????????????????#" "#??? | | ??????????????????????#"""""#??? | | ??????????????????????#######??? | | ???????????????????????????????? | | ???????????????????????????????? | | | | | | | | | | | | | | | | | | | | | | | +----------------------------------------------------+ Best States ------------- Heat Dissipation 70 Energy Generation 20 Energy Capacity 300 Matter Stores 300 Matter Capacity 300 Sight Range 22 Robot Scan Range 15 Terrain Scan Range 20 Terrain Scan Density 1210 Cloak Strength 2 Power Amplification 40 Armor Coverage 230 Propulsion Shielding 33 Utility Shielding 33 Evasion (%) 72 Recoil Reduction 5 Offensive Hacking 10 Defensive Hacking 20 Item Schematics ----------------- Hcp. Storage Unit | -10/Materials | Hacked Huge Storage Unit | -10/Materials | Hacked Robot Schematics ------------------ None Fabricated ------------ Nothing Repaired ---------- Biomechanical Wings | 5% | -6/Factory Studied --------- None Alien Tech Used ----------------- None Achievements -------------- Explosive Keycard Longdome?! Nice Directions, Buddy Challenges ------------ None Game ------ Seed ShadingLaserPod Manual? 0 Play Time 02:20:09 Cumulative 199.1 hours Start 2025.12.06 @ 13:05:33 End 2025.12.07 @ 15:10:29 Sessions 2 Manual Loads 0 Difficulty Rogue Special Mode None Game No. 77 Rogue 73 Adventurer 1 Explorer 3 Win Type - Total 7 Types 4/2/1/0/0/0/0/0/0/0 Lore% 67 Gallery% 69 Achievement% 50 Wizard Run 0 Options --------- Layout 2 ASCII 0 Keyboard 1 Movement Numpad Keybinds 0 Fullscreen 1 Font 32/SmallcapsGlow Map View 50x44 Zoom Use 0% Tactical HUD 1 Map Filters NONE Filters NONE Steam 1 RUN: e38fd235-f48a-4045-b993-e45724ede42e